fUSD/lending_fUSD_20241203
["ID","MTS","AMOUNT","RATE_DAILY","PERIOD"]
[344052262,1733250178235,-500.0,0.00025273,120]
[344052263,1733250178286,-500.0,0.00025273,120]
[344052264,1733250178344,-936.9,0.00025273,120]
[344052265,1733250178398,-500.0,0.00025273,120]
[344052266,1733250178450,-624.78,0.00025273,120]
[344052267,1733250178505,-736.49,0.00025273,120]
[344052268,1733250178555,-500.0,0.00025273,120]
[344052269,1733250178608,-500.0,0.00025273,120]
[344052270,1733250178664,-500.0,0.00025273,120]
[344052271,1733250178716,-622.83,0.00025273,120]
[344052272,1733250178766,-500.0,0.00025273,120]
[344052273,1733250178815,-500.0,0.00025273,120]
[344052274,1733250178864,-500.0,0.00025273,120]
[344052275,1733250178914,-418.482129,0.00025273,120]
[344052276,1733250178968,-769.34,0.00025273,120]
[344052277,1733250179014,-1520.92,0.00025273,120]
[344052278,1733250179064,-500.0,0.00025273,120]
[344052279,1733250179495,-500.0,0.00025273,120]
[344052280,1733250179547,-1047.21,0.00025273,120]
[344052281,1733250179601,-1109.54,0.00025273,120]
[344052282,1733250179650,-500.0,0.00025273,120]
[344052283,1733250179702,-500.0,0.00025273,120]
[344052284,1733250179752,-500.0,0.00025273,120]
[344052285,1733250179803,-500.0,0.00025273,120]
[344052286,1733250179858,-1364.18,0.00025273,120]
[344052287,1733250179916,-1396.7,0.00025273,120]
[344052288,1733250179967,-500.0,0.00025273,120]
[344052289,1733250180020,-500.0,0.00025273,120]
[344052290,1733250180073,-953.33,0.00025273,120]
[344052291,1733250180129,-1327.84,0.00025273,120]
[344052292,1733250180183,-500.0,0.00025273,120]
[344052293,1733250180237,-862.9,0.00025273,120]
[344052294,1733250180293,-1022.1,0.00025273,120]
[344052295,1733250180346,-500.0,0.00025273,120]
[344052296,1733250180398,-500.0,0.00025273,120]
[344052297,1733250180450,-1082.54,0.00025273,120]
[344052298,1733250180504,-965.21,0.00025273,120]
[344052299,1733250180556,-500.0,0.00025273,120]
[344052300,1733250180610,-500.0,0.00025273,120]
[344052301,1733250180667,-760.33,0.00025273,120]
[344052302,1733250180718,-500.0,0.00025273,120]
[344052303,1733250180768,-500.0,0.00025273,120]
[344052304,1733250180820,-500.0,0.00025273,120]
[344052305,1733250180873,-500.0,0.00025273,120]
[344052306,1733250180927,-623.32,0.00025273,120]
[344052307,1733250180984,-915.3,0.00025273,120]
[344052308,1733250181036,-500.0,0.00025273,120]
[344052309,1733250181091,-500.0,0.00025273,120]
[344052310,1733250181140,-500.0,0.00025273,120]
[344052311,1733250181191,-616.61,0.00025273,120]
[344052312,1733250181241,-500.0,0.00025273,120]
[344052313,1733250181291,-500.0,0.00025273,120]
[344052314,1733250181341,-1604.13,0.00025273,120]
[344052315,1733250181391,-500.0,0.00025273,120]
[344052316,1733250181439,-988.77,0.00025273,120]
[344052317,1733250181488,-500.0,0.00025273,120]
[344052318,1733250181539,-500.0,0.00025273,120]
[344052319,1733250181589,-500.0,0.00025273,120]
[344052320,1733250181641,-500.0,0.00025273,120]
[344052321,1733250181705,-500.0,0.00025273,120]
[344052322,1733250181765,-909.96,0.00025273,120]
[344052323,1733250181818,-500.0,0.00025273,120]
[344052324,1733250181873,-669.97,0.00025273,120]
[344052325,1733250181931,-549.2397242,0.00025273,120]
[344052326,1733250181991,-820.14,0.00025273,120]
[344052327,1733250182260,-500.0,0.00025273,120]
[344052328,1733250182320,-706.07,0.00025273,120]
[344052329,1733250182380,-500.0,0.00025273,120]
[344052330,1733250182443,-566.41,0.00025273,120]
[344052331,1733250182498,-500.0,0.00025273,120]
[344052332,1733250182558,-500.0,0.00025273,120]
[344052333,1733250182615,-500.0,0.00025273,120]
[344052334,1733250182674,-893.42,0.00025273,30]
[344052335,1733250182727,-500.0,0.00025273,120]
[344052336,1733250182779,-500.0,0.00025273,120]
[344052337,1733250182830,-1173.35,0.00025273,120]
[344052338,1733250182884,-673.39,0.00025273,120]
[344052339,1733250182938,-1040.51,0.00025273,120]
[344052340,1733250182990,-500.0,0.00025273,120]
[344052341,1733250183044,-510.51,0.00025273,120]
[344052342,1733250183099,-500.0,0.00025273,120]
[344052343,1733250183154,-923.73,0.00025273,120]
[344052344,1733250183210,-500.0,0.00025273,120]
[344052345,1733250183264,-500.0,0.00025273,120]
[344052346,1733250183321,-500.0,0.00025273,120]
[344052347,1733250183377,-500.0,0.00025273,120]
[344052348,1733250183433,-884.05,0.00025273,120]
[344052349,1733250183487,-500.0,0.00025273,120]
[344052350,1733250183542,-500.0,0.00025273,120]
[344052351,1733250183598,-837.35,0.00025273,120]
[344052352,1733250183653,-500.0,0.00025273,120]
[344052353,1733250183712,-500.0,0.00025273,120]
[344052354,1733250183767,-1125.86,0.00025273,120]
[344052355,1733250183820,-942.04,0.00025273,120]
[344052356,1733250183873,-1579.98,0.00025273,120]
[344052357,1733250183931,-568.03,0.00025273,120]
[344052358,1733250183984,-500.0,0.00025273,120]
[344052359,1733250184040,-912.89,0.00025273,120]
[344052360,1733250184094,-500.0,0.00025273,120]
[344052361,1733250184150,-500.0,0.00025273,120]
[344052362,1733250184207,-1265.19,0.00025273,120]
[344052363,1733250184272,-500.0,0.00025273,120]
[344052364,1733250184328,-500.0,0.00025273,120]
[344052365,1733250184384,-500.0,0.00025273,120]
[344052366,1733250184441,-1753.66,0.00025273,120]
[344052367,1733250184495,-633.78,0.00025273,120]
[344052368,1733250184550,-1629.32,0.00025273,120]
[344052369,1733250184604,-500.0,0.00025273,120]
[344052370,1733250184659,-500.0,0.00025273,120]
[344052371,1733250184713,-500.0,0.00025273,120]
[344052372,1733250184765,-500.0,0.00025273,120]
[344052373,1733250184817,-500.0,0.00025273,120]
[344052374,1733250185248,-500.0,0.00025273,120]
[344052375,1733250185300,-500.0,0.00025273,120]
[344052376,1733250185349,-918.63,0.00025273,120]
[344052377,1733250185400,-518.71543361,0.00025273,120]
[344052378,1733250185451,-1241.12,0.00025273,120]
[344052379,1733250185503,-500.0,0.00025273,120]
[344052380,1733250185554,-500.0,0.00025273,120]
[344052381,1733250185604,-500.0,0.00025273,120]
[344052382,1733250185653,-960.76,0.00025273,120]
[344052383,1733250185702,-500.0,0.00025273,120]
[344052384,1733250185751,-911.51,0.00025273,120]
[344052385,1733250185800,-500.0,0.00025273,120]
[344052386,1733250185849,-500.0,0.00025273,120]
[344052387,1733250185900,-1111.65,0.00025273,120]
[344052388,1733250185951,-500.0,0.00025273,120]
[344052389,1733250186001,-548.52,0.00025273,120]
[344052390,1733250186050,-500.0,0.00025273,120]
[344052391,1733250186098,-500.0,0.00025273,120]
[344052392,1733250186147,-500.0,0.00025273,120]
[344052393,1733250186195,-500.0,0.00025273,120]
[344052394,1733250186245,-500.0,0.00025273,120]
[344052395,1733250186293,-500.0,0.00025273,120]
[344052396,1733250186343,-869.18,0.00025273,120]
[344052397,1733250186395,-500.0,0.00025273,120]
[344052398,1733250186447,-945.44,0.00025273,120]
[344052399,1733250186502,-500.0,0.00025273,120]
[344052400,1733250186554,-500.0,0.00025273,120]
[344052401,1733250186606,-962.7,0.00025273,120]
[344052402,1733250186657,-500.0,0.00025273,120]
[344052403,1733250186709,-500.0,0.00025273,120]
[344052404,1733250186761,-500.0,0.00025273,120]
[344052405,1733250186811,-938.44,0.00025273,120]
[344052406,1733250186862,-500.0,0.00025273,120]
[344052407,1733250186921,-815.51,0.00025273,120]
[344052408,1733250186974,-500.0,0.00025273,120]
[344052409,1733250187024,-500.0,0.00025273,120]
[344052410,1733250187078,-863.82,0.00025273,120]
[344052411,1733250187133,-500.0,0.00025273,120]
[344052412,1733250187185,-982.03,0.00025273,120]
[344052413,1733250187235,-902.44,0.00025273,120]
[344052414,1733250187287,-500.0,0.00025273,120]
[344052415,1733250187338,-948.72,0.00025273,120]
[344052416,1733250187392,-500.0,0.00025273,120]
[344052417,1733250187445,-785.84,0.00025273,120]
[344052418,1733250187501,-797.14,0.00025273,120]
[344052419,1733250187555,-736.28,0.00025273,120]
[344052420,1733250187609,-560.70247611,0.00025273,120]
[344052421,1733250187667,-611.8,0.00025273,120]
[344052422,1733250187724,-368.5437114,0.00025273,120]
[344052423,1733250187778,-732.99,0.00025273,120]
[344052424,1733250187830,-865.2,0.00025273,120]
[344052425,1733250187884,-500.0,0.00025273,120]
[344052426,1733250187938,-500.0,0.00025273,120]
[344052427,1733250187989,-709.59,0.00025273,120]
[344052428,1733250188042,-578.12,0.00025273,120]
[344052429,1733250188094,-500.0,0.00025273,120]
[344052430,1733250188144,-579.58,0.00025273,120]
[344052431,1733250188198,-1289.38,0.00025273,120]
[344052432,1733250188247,-2324.68,0.00025273,120]
[344052433,1733250188300,-500.0,0.00025273,120]
[344052434,1733250188351,-718.18,0.00025273,120]
[344052435,1733250188406,-500.0,0.00025273,120]
[344052436,1733250188456,-500.0,0.00025273,120]
[344052437,1733250188508,-790.9,0.00025273,120]
[344052438,1733250188557,-565.56,0.00025273,120]
[344052439,1733250188608,-500.0,0.00025273,120]
[344052440,1733250188655,-500.0,0.00025273,120]
[344052441,1733250188705,-922.82,0.00025273,120]
[344052442,1733250188753,-500.0,0.00025273,120]
[344052443,1733250188802,-500.0,0.00025273,120]
[344052444,1733250188850,-500.0,0.00025273,120]
[344052445,1733250188900,-500.0,0.00025273,120]
[344052446,1733250188957,-1931.35,0.00025273,120]
[344052447,1733250189008,-1048.08,0.00025273,120]
[344052448,1733250189057,-1128.61,0.00025273,120]
[344052449,1733250189109,-500.0,0.00025273,120]
[344052450,1733250189160,-500.0,0.00025273,120]
[344052451,1733250189214,-500.0,0.00025273,120]
[344052452,1733250189267,-1010.23,0.00025273,120]
[344052453,1733250189319,-500.0,0.00025273,120]
[344052454,1733250189371,-500.0,0.00025273,120]
[344052455,1733250189428,-632.01,0.00025273,120]
[344052456,1733250189481,-500.0,0.00025273,120]
[344052457,1733250189533,-2352.37,0.00025273,120]
[344052458,1733250189584,-638.45,0.00025273,120]
[344052459,1733250189638,-500.0,0.00025273,120]
[344052460,1733250189690,-1327.31,0.00025273,120]
[344052461,1733250189740,-1291.5,0.00025273,120]
[344052462,1733250189793,-500.0,0.00025273,120]
[344052463,1733250189843,-1070.56,0.00025273,120]
[344052464,1733250189894,-500.0,0.00025273,120]
[344052465,1733250189949,-500.0,0.00025273,120]
[344052466,1733250190002,-500.0,0.00025273,120]
[344052467,1733250190057,-500.0,0.00025273,120]
[344052468,1733250190365,-500.0,0.00025273,120]
[344052469,1733250190415,-500.0,0.00025273,120]
[344052470,1733250190466,-500.0,0.00025273,120]
[344052471,1733250190514,-515.41041236,0.00025273,120]
[344052472,1733250190563,-500.0,0.00025273,120]
[344052473,1733250190610,-592.55,0.00025273,120]
[344052474,1733250190658,-1196.34,0.00025273,120]
[344052475,1733250190709,-1715.87,0.00025273,120]
[344052476,1733250190758,-1259.04,0.00025273,120]
[344052477,1733250190805,-500.0,0.00025273,120]
[344052478,1733250190853,-500.0,0.00025273,120]
[344052479,1733250190905,-500.0,0.00025273,120]
[344052480,1733250190958,-2192.67,0.00025273,120]
[344052481,1733250191007,-500.0,0.00025273,120]
[344052482,1733250191054,-1359.55,0.00025273,120]
[344052483,1733250191106,-1077.03,0.00025273,120]
[344052484,1733250191158,-1384.37,0.00025273,120]
[344052485,1733250191210,-885.94,0.00025273,120]
[344052486,1733250191261,-675.85,0.00025273,120]
[344052487,1733250191313,-1005.05,0.00025273,120]
[344052488,1733250191364,-1389.23,0.00025273,120]
[344052489,1733250191416,-595.21,0.00025273,120]
[344052490,1733250191468,-500.0,0.00025273,120]
[344052491,1733250191521,-500.0,0.00025273,30]
[344052492,1733250191574,-610.46025969,0.00025273,120]
[344052493,1733250191627,-241.66951569,0.00025273,120]
[344052494,1733250191682,-2544.92,0.00025273,120]
[344052495,1733250191734,-500.0,0.00025273,120]
[344052496,1733250191786,-500.0,0.00025273,120]
[344052497,1733250191838,-648.87,0.00025273,120]
[344052498,1733250191891,-500.0,0.00025273,120]
[344052499,1733250191946,-566.09,0.00025273,120]
[344052500,1733250192000,-539.42,0.00025273,120]
[344052501,1733250192060,-500.0,0.00025273,120]
[344052502,1733250192117,-500.0,0.00025273,30]
[344052503,1733250192171,-500.0,0.00025273,120]
[344052504,1733250192223,-1013.29,0.00025273,120]
[344052505,1733250192273,-2011.34,0.00025273,120]
[344052506,1733250192325,-500.0,0.00025273,120]
[344052507,1733250192377,-500.0,0.00025273,120]
[344052508,1733250192431,-880.36,0.00025273,120]
[344052509,1733250192485,-736.6,0.00025273,120]
[344052510,1733250192536,-500.0,0.00025273,120]
[344052511,1733250192586,-624.2,0.00025273,120]
[344052512,1733250192639,-931.41,0.00025273,120]
[344052513,1733250192687,-500.0,0.00025273,120]
[344052514,1733250192737,-817.82,0.00025273,120]
[344052515,1733250192788,-1059.1,0.00025273,120]
[344052516,1733250192836,-500.0,0.00025273,120]
[344052517,1733250192883,-500.0,0.00025273,120]
[344052518,1733250192932,-1685.59,0.00025273,120]
[344052519,1733250192981,-500.0,0.00025273,30]
[344052520,1733250193032,-657.36,0.00025273,120]
[344052521,1733250193081,-1036.2,0.00025273,120]
[344052522,1733250193131,-829.87,0.00025273,120]
[344052523,1733250193182,-1080.51,0.00025273,120]
[344052524,1733250193232,-500.0,0.00025273,120]
[344052525,1733250193281,-500.0,0.00025273,120]
[344052526,1733250193330,-500.0,0.00025273,120]
[344052527,1733250193377,-633.08,0.00025273,120]
[344052528,1733250193426,-1313.56,0.00025273,120]
[344052529,1733250193472,-500.0,0.00025273,120]
[344052530,1733250193521,-4122.57,0.00025273,120]
[344052531,1733250193572,-1957.51,0.00025273,120]
[344052532,1733250193619,-500.0,0.00025273,120]
[344052533,1733250193668,-716.26,0.00025273,120]
[344052534,1733250193715,-500.0,0.00025273,120]
[344052535,1733250193760,-500.0,0.00025273,120]
[344052536,1733250193806,-1204.87,0.00025273,120]
[344052537,1733250193853,-2230.06,0.00025273,120]
[344052538,1733250193901,-1401.48,0.00025273,120]
[344052539,1733250193950,-545.66,0.00025273,120]
[344052540,1733250194000,-500.0,0.00025273,120]
[344052541,1733250194049,-1576.95,0.00025273,120]
[344052542,1733250194103,-594.63,0.00025273,120]
[344052543,1733250194155,-500.0,0.00025273,120]
[344052544,1733250194207,-1171.79,0.00025273,120]
[344052545,1733250194258,-1051.44,0.00025273,120]
[344052546,1733250194313,-500.0,0.00025273,120]
[344052547,1733250194363,-1380.54,0.00025273,120]
[344052548,1733250194412,-500.0,0.00025273,120]
[344052549,1733250194460,-1529.1,0.00025273,120]
[344052550,1733250194509,-513.47,0.00025273,120]
[344052551,1733250194559,-500.0,0.00025273,120]
[344052552,1733250194607,-500.0,0.00025273,120]
[344052553,1733250194656,-500.0,0.00025273,120]
[344052554,1733250194706,-3571.46,0.00025273,120]
[344052555,1733250194756,-500.0,0.00025273,120]
[344052556,1733250194810,-928.3,0.00025273,120]
[344052557,1733250194861,-1122.31,0.00025273,120]
[344052558,1733250194911,-1004.61,0.00025273,120]
[344052559,1733250194966,-500.0,0.00025273,120]
[344052560,1733250195014,-500.0,0.00025273,120]
[344052561,1733250195064,-500.0,0.00025273,120]
[344052562,1733250195406,-1367.33,0.00025273,120]
[344052563,1733250195455,-500.0,0.00025273,120]
[344052564,1733250195505,-1280.51,0.00025273,120]
[344052565,1733250195552,-523.65,0.00025273,120]
[344052566,1733250195601,-953.6,0.00025273,120]
[344052567,1733250195649,-549.48,0.00025273,120]
[344052568,1733250195698,-1935.74,0.00025273,120]
[344052569,1733250195744,-980.14,0.00025273,120]
[344052570,1733250195792,-1845.16,0.00025273,120]
[344052571,1733250195837,-500.0,0.00025273,120]
[344052572,1733250195884,-500.0,0.00025273,120]
[344052573,1733250195931,-955.91,0.00025273,120]
[344052574,1733250195977,-500.0,0.00025273,120]
[344052575,1733250196023,-2137.71,0.00025273,120]
[344052576,1733250196070,-500.0,0.00025273,120]
[344052577,1733250196117,-500.0,0.00025273,120]
[344052578,1733250196164,-1259.16,0.00025273,120]
[344052579,1733250196211,-500.0,0.00025273,120]
[344052580,1733250196258,-500.0,0.00025273,120]
[344052581,1733250196306,-500.0,0.00025273,120]
[344052582,1733250196353,-500.0,0.00025273,120]
[344052583,1733250196401,-996.84,0.00025273,120]
[344052584,1733250196449,-938.95,0.00025273,120]
[344052585,1733250196497,-808.07,0.00025273,120]
[344052586,1733250196545,-1125.98,0.00025273,120]
[344052587,1733250196592,-1136.68,0.00025273,120]
[344052588,1733250196641,-600.57,0.00025273,120]
[344052589,1733250196687,-2302.99,0.00025273,120]
[344052590,1733250196732,-586.03,0.00025273,120]
[344052591,1733250196779,-500.0,0.00025273,120]
[344052592,1733250196826,-904.92,0.00025273,120]
[344052593,1733250196876,-2129.82,0.00025273,120]
[344052594,1733250196926,-500.0,0.00025273,120]
[344052595,1733250196974,-605.79,0.00025273,120]
[344052596,1733250197024,-2069.37,0.00025273,120]
[344052597,1733250197071,-500.0,0.00025273,120]
[344052598,1733250197120,-500.0,0.00025273,120]
[344052599,1733250197170,-1210.85,0.00025273,120]
[344052600,1733250197217,-800.1,0.00025273,120]
[344052601,1733250197267,-1300.8,0.00025273,120]
[344052602,1733250197315,-500.0,0.00025273,120]
[344052603,1733250197365,-855.32,0.00025273,120]
[344052604,1733250197413,-500.0,0.00025273,120]
[344052605,1733250197462,-1028.77,0.00025273,120]
[344052606,1733250197510,-759.43,0.00025273,120]
[344052607,1733250197559,-610.78,0.00025273,120]
[344052608,1733250197608,-789.23,0.00025273,120]
[344052609,1733250197656,-534.75,0.00025273,120]
[344052610,1733250197703,-683.38,0.00025273,120]
[344052611,1733250197750,-1854.68,0.00025273,120]
[344052612,1733250197803,-500.0,0.00025273,120]
[344052613,1733250197851,-500.0,0.00025273,120]
[344052614,1733250197900,-1161.74,0.00025273,120]
[344052615,1733250197952,-1518.28,0.00025273,120]
[344052616,1733250198003,-551.40671515,0.00025273,60]
[344052617,1733250198058,-4343.74,0.00025273,120]
[344052618,1733250198112,-500.0,0.00025273,120]
[344052619,1733250198167,-1309.26,0.00025273,120]
[344052620,1733250198220,-500.0,0.00025273,120]
[344052621,1733250198274,-1817.19,0.00025273,120]
[344052622,1733250198327,-1963.51,0.00025273,120]
[344052623,1733250198377,-983.0,0.00025273,120]
[344052624,1733250198431,-500.0,0.00025273,120]
[344052625,1733250198484,-456.46,0.00025273,120]
[344052626,1733250198536,-1810.34,0.00025273,120]
[344052627,1733250198587,-500.0,0.00025273,120]
[344052628,1733250198636,-500.0,0.00025273,120]
[344052629,1733250198688,-500.0,0.00025273,120]
[344052630,1733250198738,-500.0,0.00025273,120]
[344052631,1733250198788,-809.29,0.00025273,120]
[344052632,1733250198837,-1208.62,0.00025273,120]
[344052633,1733250198886,-500.0,0.00025273,120]
[344052634,1733250198941,-1795.63,0.00025273,120]
[344052635,1733250198997,-1252.33,0.00025273,120]
[344052636,1733250199048,-299.89473763,0.00025273,120]
[344052637,1733250199099,-3616.21,0.00025273,120]
[344052638,1733250199151,-500.0,0.00025273,120]
[344052639,1733250199205,-500.0,0.00025273,120]
[344052640,1733250199257,-1547.71,0.00025273,120]
[344052641,1733250199309,-1080.45,0.00025273,120]
[344052642,1733250199360,-500.0,0.00025273,120]
[344052643,1733250199413,-500.0,0.00025273,120]
[344052644,1733250199465,-1000.4,0.00025273,120]
[344052645,1733250199526,-500.0,0.00025273,120]
[344052646,1733250199578,-500.0,0.00025273,120]
[344052647,1733250199628,-500.0,0.00025273,120]
[344052648,1733250199689,-3579.15,0.00025273,120]
[344052649,1733250199739,-549.65,0.00025273,120]
[344052650,1733250199790,-1271.42,0.00025273,120]
[344052651,1733250199838,-1666.85,0.00025273,120]
[344052652,1733250199892,-860.44,0.00025273,120]
[344052653,1733250199944,-1167.21,0.00025273,120]
[344052654,1733250199997,-337.9650406,0.00025273,120]
[344052655,1733250200048,-500.0,0.00025273,120]
[344052656,1733250200415,-536.78,0.00025273,120]
[344052657,1733250200465,-1334.0,0.00025273,120]
[344052658,1733250200516,-500.0,0.00025273,120]
[344052659,1733250200565,-1018.6,0.00025273,120]
[344052660,1733250200612,-1003.25,0.00025273,120]
[344052662,1733250200657,-500.0,0.00025273,120]
[344052663,1733250200704,-608.56,0.00025273,120]
[344052664,1733250200749,-500.0,0.00025273,120]
[344052665,1733250200796,-500.0,0.00025273,120]
[344052666,1733250200841,-958.24,0.00025273,120]
[344052667,1733250200891,-1163.55,0.00025273,120]
[344052668,1733250200939,-1132.2,0.00025273,120]
[344052669,1733250200985,-500.0,0.00025273,120]
[344052670,1733250201033,-1784.98,0.00025273,120]
[344052671,1733250201081,-1879.95,0.00025273,120]
[344052672,1733250201130,-500.0,0.00025273,120]
[344052673,1733250201180,-500.0,0.00025273,120]
[344052674,1733250201228,-1156.91,0.00025273,120]
[344052675,1733250201275,-527.06,0.00025273,120]
[344052676,1733250201324,-1605.24,0.00025273,120]
[344052677,1733250201372,-500.0,0.00025273,120]
[344052678,1733250201421,-500.0,0.00025273,120]
[344052679,1733250201467,-814.44,0.00025273,120]
[344052680,1733250201515,-500.0,0.00025273,120]
[344052681,1733250201564,-500.0,0.00025273,120]
[344052682,1733250201614,-2557.05,0.00025273,120]
[344052683,1733250201664,-500.0,0.00025273,120]
[344052684,1733250201715,-2385.34,0.00025273,120]
[344052685,1733250201763,-916.24,0.00025273,120]
[344052686,1733250201813,-2737.05,0.00025273,120]
[344052687,1733250201863,-3222.85,0.00025273,120]
[344052688,1733250201915,-500.0,0.00025273,120]
[344052689,1733250201966,-500.0,0.00025273,120]
[344052690,1733250202016,-990.52,0.00025273,120]
[344052691,1733250202064,-500.0,0.00025273,120]
[344052692,1733250202115,-500.0,0.00025273,120]
[344052693,1733250202164,-1459.93,0.00025273,120]
[344052694,1733250202214,-1131.65,0.00025273,120]
[344052695,1733250202265,-500.0,0.00025273,120]
[344052696,1733250202315,-463.57464444,0.00025273,120]
[344052697,1733250202364,-943.69,0.00025273,120]
[344052698,1733250202414,-2603.73,0.00025273,120]
[344052699,1733250202464,-1315.08,0.00025273,120]
[344052700,1733250202514,-932.09,0.00025273,120]
[344052701,1733250202571,-500.0,0.00025273,120]
[344052702,1733250202622,-1688.06,0.00025273,120]
[344052703,1733250202672,-937.1,0.00025273,120]
[344052704,1733250202723,-1786.64,0.00025273,120]
[344052705,1733250202772,-1112.39,0.00025273,120]
[344052706,1733250202823,-521.82,0.00025273,120]
[344052707,1733250202872,-2472.22,0.00025273,120]
[344052708,1733250202924,-500.0,0.00025273,120]
[344052709,1733250202974,-988.68,0.00025273,120]
[344052710,1733250203030,-1034.99,0.00025273,120]
[344052711,1733250203079,-500.0,0.00025273,120]
[344052712,1733250203129,-1620.61,0.00025273,120]
[344052713,1733250203184,-3018.4,0.00025273,120]
[344052714,1733250203234,-500.0,0.00025273,120]
[344052715,1733250203286,-1035.74,0.00025273,120]
[344052716,1733250203337,-1888.2,0.00025273,120]
[344052717,1733250203389,-2914.75,0.00025273,120]
[344052718,1733250203441,-500.0,0.00025273,120]
[344052719,1733250203493,-500.0,0.00025273,120]
[344052720,1733250203544,-500.0,0.00025273,120]
[344052721,1733250203601,-694.75,0.00025273,120]
[344052722,1733250203654,-1239.91,0.00025273,120]
[344052723,1733250203710,-1576.33,0.00025273,120]
[344052724,1733250203762,-500.0,0.00025273,120]
[344052725,1733250203812,-500.0,0.00025273,120]
[344052726,1733250203863,-500.0,0.00025273,120]
[344052727,1733250203914,-500.0,0.00025273,120]
[344052728,1733250203969,-500.0,0.00025273,120]
[344052729,1733250204017,-571.12,0.00025273,120]
[344052730,1733250204069,-1273.86,0.00025273,120]
[344052731,1733250204123,-500.0,0.00025273,120]
[344052732,1733250204180,-500.0,0.00025273,120]
[344052733,1733250204232,-711.04,0.00025273,120]
[344052734,1733250204283,-2336.62,0.00025273,120]
[344052735,1733250204334,-1294.95,0.00025273,120]
[344052736,1733250204384,-800.19,0.00025273,120]
[344052737,1733250204442,-500.0,0.00025273,120]
[344052738,1733250204496,-500.0,0.00025273,120]
[344052739,1733250204549,-1662.61,0.00025273,120]
[344052740,1733250204601,-866.17,0.00025273,120]
[344052741,1733250204652,-500.0,0.00025273,120]
[344052742,1733250204704,-500.0,0.00025273,120]
[344052743,1733250204755,-745.76,0.00025273,120]
[344052744,1733250204807,-636.16,0.00025273,120]
[344052745,1733250204859,-1198.13,0.00025273,120]
[344052746,1733250204912,-1200.71,0.00025273,120]
[344052747,1733250204966,-1032.21,0.00025273,120]
[344052748,1733250205017,-540.38,0.00025273,120]
[344052749,1733250205067,-2176.98,0.00025273,120]
[344052750,1733250205126,-1274.26,0.00025273,120]
[344052751,1733250205180,-500.0,0.00025273,120]
[344052752,1733250205560,-500.0,0.00025273,120]
[344052753,1733250205610,-1464.59,0.00025273,120]
[344052754,1733250205662,-218.78137775,0.00025273,120]
[344052755,1733250205713,-500.0,0.00025273,120]
[344052756,1733250205764,-921.92,0.00025273,120]
[344052757,1733250205814,-1538.98,0.00025273,120]
[344052758,1733250205863,-4431.17,0.00025273,120]
[344052759,1733250205920,-500.0,0.00025273,120]
[344052760,1733250205971,-1929.44,0.00025273,120]
[344052761,1733250206024,-1089.92,0.00025273,120]
[344052762,1733250206076,-1409.43,0.00025273,120]